Cogmind - Beta 17 @@@ ROGUE MODE // 2026.06.24 @ 02:12:16 Player: TheLostLambda Result: Destroyed by I6-ZZO(R) with Subdweller Machine Gun Performance ------------- Evolutions (0) 0 Regions Visited (2) 400 Robots Destroyed (19) 95 Value Destroyed (361) 361 Prototype IDs (3) 60 Alien Tech Used (0) 0 Bonus (0) 0 TOTAL SCORE: 916 Bonus ------- None Cogmind --------- Core Integrity 0/250 Matter 225/300 Energy 162/200 System Corruption 1% Temperature Cool (60) Movement Rolling (110) Location -10/Subcaves Parts ------- > --- POWER (1) -------- Subdweller Power Source > --- PROPULSION (2) --- Subdweller Monowheel Hover Unit > --- UTILITY (2) ------ Structural Scanner > --- WEAPON (2) ------- Heavy Riot Gun Subdweller Shrapnel Launcher > --- INVENTORY (5) ---- Subdweller Optics Subdweller Laser Subdweller Machine Gun Hammer Peak State ------------ > --- POWER ------------ Subdweller Power Source > --- PROPULSION ------- Subdweller Monowheel Hover Unit > --- UTILITY ---------- Scrap Shield > --- WEAPON ----------- Heavy Riot Gun Subdweller Laser > --- INVENTORY -------- Structural Scanner Subdweller Optics Sensor Array Subdweller Shrapnel Launcher Hammer [Rating: 15] Favorites ----------- Power Ion Engine Engine Ion Engine Propulsion Hover Unit Wheel Compact Wheel Hover Unit Hover Unit Utility Scrap Shield Device Seismic Detector Storage Medium Storage Unit Protection Scrap Shield Weapon Mining Claw Energy Gun EM Pulse Gun Ballistic Gun Assault Rifle Launcher Subdweller Shrapnel Launcher Impact Weapon Hammer Slashing Weapon Mining Claw Build | -11 -10 -10 ------- Run | Yrd Mat Sub Slots Evolved . | . . . Power . | . . . Propulsion . | . . . Utility . | . . . Weapon . | . . . Parts Attached 31 | 8 15 8 Power 5 | 1 2 2 Engine 5 | 1 2 2 Core . | . . . Reactor . | . . . Propulsion 8 | 2 4 2 Treads . | . . . Leg . | . . . Wheel 6 | 2 2 2 Hover 2 | . 2 . Flight . | . . . Utility 8 | 2 5 1 Device 3 | 1 2 . Storage 3 | 1 2 . Processor . | . . . Hackware . | . . . Protection 2 | . 1 1 Artifact . | . . . Weapon 10 | 3 4 3 Energy Gun 4 | 1 1 2 Energy Cannon . | . . . Ballistic Gun 2 | 2 . . Ballistic Cannon . | . . . Launcher 1 | . . 1 Special Weapon . | . . . Impact Weapon 1 | . 1 . Slashing Weapon 2 | . 2 . Piercing Weapon . | . . . Special Melee Weapon . | . . . Unidentified Prototypes . | . . . Parts Lost 5 | . 4 1 Power 1 | . 1 . Propulsion 3 | . 3 . Utility 1 | . . 1 Weapon . | . . . Highest Loss Streak 2 | . 2 1 To Critical Strikes . | . . . Average Backups 6 | 4 8 4 Power . | . . . Propulsion . | 2 . . Utility 3 | . 4 2 Weapon 1 | . 1 2 Tool/Special . | . . . Unused Backups 14 | 2 9 3 Power 1 | . 1 . Propulsion 5 | 2 3 . Utility 5 | . 3 2 Weapon 2 | . 1 1 Tool/Special 1 | . 1 . Average Slot Usage (%) 92 | . 98 85 Engine 14 | . 14 14 Wheel 16 | . 21 9 Hover 10 | . 4 18 Device 7 | . 14 . Storage 6 | . 11 . Protection 7 | . 2 13 Energy Gun 14 | . 8 21 Ballistic Gun 4 | . 7 . Launcher 2 | . . 6 Impact Weapon 1 | . 2 . Slashing Weapon 5 | . 9 . Peak Build Rating 15 | 8 8 15 Average Rating 9 | 4 7 13 On Entrance 5 | . 7 8 Avg Prop Armor Cover (%) 2 | . . 2 Naked Turns . | . . . Heaviest Build 35 | 15 20 35 Greatest Support 32 | 32 32 20 Greatest Overweight (x) 5 | . 3 5 Average Overweight (x) . | . . 1 Largest Inventory Capacity 10 | 8 10 5 Average Capacity 7 | 7 8 5 Most Carried 10 | 8 10 5 Average Carried 6 | 4 8 4 Final Capacity 8 | 8 5 5 Final Carried 7 | 7 5 4 Class Distribution -------------------- 70% | Mutant 29% | Subdweller-Mutant Dominant Class ---------------- Mutant | -10/Materials Subdweller-Mutant | -10/Subcaves Resources | -11 -10 -10 ----------- Run | Yrd Mat Sub Matter Collected 583 | 288 206 89 Remotely . | . . . Salvage Created 526 | 83 390 53 Parts 40 | 4 32 4 Haulers Intercepted 2 | . 2 . Recyclers Shooed 1 | 1 . . Parts Field Recycled . | . . . Retrieved Matter . | . . . Parts Self-Destructed . | . . . Prevented . | . . . Parts Restored . | . . . Kills | -11 -10 -10 ------- Run | Yrd Mat Sub Combat Hostiles Destroyed 13 | . 11 2 Melee 5 | . 5 . Guns 5 | . 5 . AOE 2 | . . 2 Classes Destroyed 8 | 2 6 . Tunneler 1 | 1 . . Hauler 2 | . 2 . Recycler 1 | 1 . . Operator 1 | . 1 . Watcher 1 | . 1 . Swarmer 7 | . 7 . Grunt 3 | . 3 . Subdweller 3 | . 1 2 Best Kill Streak 4 | 1 4 1 Combat Bots Only 4 | . 4 1 Max Kills in Single Turn 1 | 1 1 1 Gunslinging . | . . . Exploded 1 | . . 1 Melee 1 | . 1 . Uniques/NPCs Destroyed . | . . . Combat | -11 -10 -10 -------- Run | Yrd Mat Sub Hostile Shots Fired 82 | . 65 17 Missed 24 | . 19 5 Hits 58 | . 46 12 Projectile 58 | . 46 12 AOE 1 | . 1 . Damage Taken 860 | . 589 271 Core 259 | . 243 16 Absorbed by Shields . | . . . Core Remaining (%) 100 | 100 . . Volleys Fired 52 | 15 18 19 Largest 2 | 2 2 2 Hottest 100 | 40 70 100 Shots Fired 63 | 17 24 22 Gun 60 | 17 24 19 Cannon . | . . . Launcher 3 | . . 3 Special . | . . . Kinetic 26 | 17 6 3 Thermal 22 | . 6 16 Explosive . | . . . Electromagnetic 15 | . 12 3 Robot Hit Streak 8 | 8 6 4 Robot Miss Streak 2 | 1 2 1 Penetration Max . | . . . Secondary Targets . | . . . Shots Hit Robots 41 | 14 26 1 Core Hits 25 | 4 15 6 Critical Kills . | . . . Critical Parts Destroyed 1 | 1 . . Critical Strikes 1 | 1 . . Destroy 1 | 1 . . Melee Attacks 32 | . 32 . Impact 6 | . 6 . Slashing 26 | . 26 . Piercing . | . . . Sneak Attacks 4 | . 4 . Combat Hostiles . | . . . Follow-up Attacks . | . . . Damage Inflicted 823 | 127 529 167 Guns 360 | 127 209 24 Cannons . | . . . Explosions 143 | . . 143 Melee 320 | . 320 . Ramming . | . . . Kinetic 302 | 127 32 143 Thermal 50 | . 50 . Explosive . | . . . Electromagnetic 151 | . 127 24 Impact . | . . . Slashing 320 | . 320 . Piercing . | . . . Highest Corruption 1 | . 1 1 Average Corruption 1 | . 1 1 Corruption Purged . | . . . Corruption Blocked . | . . . Effects 5 | . 1 4 Message Errors 2 | . 1 1 Matter Fused 1 | . . 1 Heat Flow Errors 2 | . . 2 Overload Shots . | . . . Overflow Damage 2 | . 2 . Projectiles . | . . . Explosions . | . . . Melee 2 | . 2 . Knockbacks . | . . . Impact . | . . . Kinetic . | . . . Secondary . | . . . Self-Inflicted Damage 32 | . . 32 Shots 1 | . . 1 Rammed . | . . . Targets Rammed . | . . . Kicked . | . . . Crushed . | . . . Highest Temperature 254 | . 33 254 Average Temperature 47 | . 14 141 Received Heat Transfer 114 | . 48 66 Siege Activations . | . . . Martial Activations . | . . . Shielding Activations . | . . . Robots Disrupted . | . . . Combat Hostiles . | . . . Robots Corrupted 1 | . 1 . Combat Hostiles 1 | . 1 . Parts Fried 1 | . 1 . Impact Corruptions . | . . . Robots Melted . | . . . Combat Hostiles . | . . . Parts Melted 1 | . 1 . Heat Transferred 148 | . 148 . Parts Sabotaged . | . . . Parts Stolen . | . . . Parts Stripped . | . . . Power Chain Reactions . | . . . Alert | -11 -10 -10 ------- Run | Yrd Mat Sub Maximum Alert Level . | . . . Low Security (%) 100 | 100 100 . Level 1 . | . . . Level 2 . | . . . Level 3 . | . . . Level 4 . | . . . Level 5 . | . . . High Security . | . . . Max Security . | . . . Peak Influence 112 | 5 112 . Initial . | . . . Average 42 | . 49 . Influence Increases 369 | 10 359 . Destroy 0b10 Robot/C 200 | . 200 . Destroy 0b10 Robot/NC 30 | 10 20 . Destroy Leader 36 | . 36 . Successful Hack 31 | . 31 . Disable Machine 30 | . 30 . Destroy Structure 12 | . 12 . Lose Combat Pursuer 30 | . 30 . Influence Decreases 369 | 10 318 41 Entered New Map 21 | . . 21 Time Decay 308 | 10 278 20 Lost Part 40 | . 40 . Squads Dispatched 2 | . 2 . Investigation . | . . . Extermination . | . . . Reinforcement 2 | . 2 . Assault . | . . . Garrison . | . . . Intercept . | . . . Searches Triggered . | . . . Construction Impeded . | . . . Haulers Reinforced . | . . . Active Scanning Responses . | . . . Cargo Convoy Interrupts . | . . . Stealth | -11 -10 -10 --------- Run | Yrd Mat Sub Distress Signals 2 | . 2 . Communications Jammed . | . . . Distress Signals . | . . . Times Spotted 37 | . 26 11 Peak Tracking Total 6 | . 5 6 Tactical Retreats 4 | . 4 . Traps | -11 -10 -10 ------- Run | Yrd Mat Sub Traps Triggered 1 | . 1 . Indirectly . | . . . Trap Hack Attempts . | . . . Triggered . | . . . Disarmed . | . . . Reprogrammed . | . . . Reused . | . . . Traps Extracted . | . . . Installed . | . . . Triggered . | . . . Machines | -11 -10 -10 ---------- Run | Yrd Mat Sub Machines Disabled 2 | . 2 . Max in Single Turn 1 | . 1 . Machines Repaired . | . . . Machines Dismantled . | . . . Machines Sabotaged . | . . . Overloaded Fab Kills . | . . . Hacking | -11 -10 -10 --------- Run | Yrd Mat Sub Machines Accessed 6 | . 6 . Terminals 5 | . 5 . Fabricators . | . . . Repair Stations 1 | . 1 . Recycling Units . | . . . Scanalyzers . | . . . Garrison Access . | . . . Total Hacks 19 | . 19 . Successful 9 | . 9 . Failed 10 | . 10 . Catastrophic . | . . . Database Lockouts . | . . . Manual 8 | . 8 . Terminals 15 | . 15 . Fabricators . | . . . Repair Stations 4 | . 4 . Recycling Units . | . . . Scanalyzers . | . . . Garrison Access . | . . . Terminal Hacks 5 | . 5 . Robot Analysis 1 | . 1 . Prototype ID Bank 1 | . 1 . Emergency Access Points 1 | . 1 . Recycling Unit Index 1 | . 1 . Locate Traps 1 | . 1 . Fabricator Hacks . | . . . Repair Station Hacks 1 | . 1 . Refit 1 | . 1 . Recycling Unit Hacks . | . . . Scanalyzer . | . . . Garrison Access Hacks . | . . . Unauthorized Hacks 3 | . 3 . Terminals 3 | . 3 . Botnet 3 | . 3 . Fabricators . | . . . Repair Stations . | . . . Recycling Units . | . . . Scanalyzers . | . . . Garrison Access . | . . . Data Cores Recovered . | . . . Used . | . . . Hacking Detections 6 | . 6 . Full Trace Events 1 | . 1 . Feedback Events . | . . . Feedback Blocked . | . . . Robot Schematics Acquired . | . . . Robots Built . | . . . Authchips . | . . . Time . | . . . Total Robot Build Rating . | . . . Part Schematics Acquired . | . . . Parts Built . | . . . Authchips . | . . . Time . | . . . Total Part Build Rating . | . . . Part Studies Acquired . | . . . Parts Repaired . | . . . Time . | . . . Parts Recycled . | . . . Recycled Matter . | . . . Retrieved Matter . | . . . Retrieved Components . | . . . Parts Scanalyzed . | . . . Part Schematics Acquired . | . . . Parts Damaged . | . . . Bothacking | -11 -10 -10 ------------ Run | Yrd Mat Sub Used RIF Installer . | . . . Robots Hacked . | . . . Non-combat . | . . . Combat . | . . . Robot Hacks Applied . | . . . Relay Couplers Released . | . . . Fabnet Peak Effective % . | . . . Robots Rewired . | . . . Allies Hacked . | . . . Hacks Repelled . | . . . Allies | -11 -10 -10 -------- Run | Yrd Mat Sub Total Allies . | . . . Largest Group . | . . . Highest-Rated Group . | . . . Highest-Rated Ally . | . . . Total Orders . | . . . Ally Attacks . | . . . Total Damage . | . . . Kills . | . . . Allies Corrupted . | . . . Allies Melted . | . . . Intel | -11 -10 -10 ------- Run | Yrd Mat Sub Active Infowar (turns) 779 | 19 753 7 Optics 70 | . 64 6 Structural 217 | . 216 1 Seismic 492 | 19 473 . Robot Analysis Total 1 | . 1 . Derelict Logs Recovered 1 | . . 1 Drone Launches . | . . . Drone Recoveries . | . . . Exploration | -11 -10 -10 ------------- Run | Yrd Mat Sub Turns Passed 1489 | 124 754 611 Spaces Moved 1115 | 67 644 404 Core 2 | 1 1 . Treads . | . . . Legs . | . . . Wheels 836 | 66 458 312 Hover 277 | . 185 92 Flight . | . . . Fastest Speed 50 | 50 56 56 Average Speed 101 | 99 81 133 Slowest Speed 365 | 100 200 365 Overloaded Moves . | . . . Propulsion Burnouts . | . . . Robots Hopped . | . . . Potential Cave-ins . | . . . Cave-ins Triggered . | . . . Exploration Rate (%) 39 | 4 83 32 Regions Visited 2 Branch Regions 1 Pre-discovered Areas 1 | . . 1 Known Exits Taken . | . . . Unknown Exits Taken 2 | 1 1 . Scrap Searched . | . . . Spaces Dug 12 | . 12 . Terrain Destroyed 59 | . 12 47 Melee 12 | . 12 . Projectile . | . . . AOE 47 | . . 47 Terrain Rammed . | . . . Walls Destroyed . | . . . Machines Disabled . | . . . Actions | -11 -10 -10 --------- Run | Yrd Mat Sub Total 1361 | 107 793 461 Wait 60 | 7 42 11 Move 1113 | 66 643 404 Hop . | . . . Pick Up 32 | 9 19 4 Fast Attach 16 | 7 4 5 Attach 5 | . 4 1 Detach 2 | . . 2 Swap 15 | 1 10 4 Drop 34 | 2 21 11 Fire 52 | 15 18 19 Melee 32 | . 32 . Ram . | . . . Kick . | . . . Crush . | . . . Escape Stasis . | . . . Rewire . | . . . Trap . | . . . Miscellaneous . | . . . Route ------- -11/Scrapyard -10/Materials (discovered 4 exits: [*Mat x2] / [*Min] / [*Sub]) -10/Subcaves History --------- Turn | Location | Event 35 | -11/Scrapyard | Discovered new exit (range 15) 125 | -11/Scrapyard | Entered Materials 308 | -10/Materials | Build established: Mutant 478 | -10/Materials | Discovered new exit (range 15) 625 | -10/Materials | Derelicts attacked the area 637 | -10/Materials | Core integrity fell below 50% 656 | -10/Materials | Core integrity fell below 20% 679 | -10/Materials | Discovered new exit (range 10) 768 | -10/Materials | Discovered new exit (range 4) 855 | -10/Materials | Discovered new exit (range 21) 879 | -10/Materials | Entered Subcaves 880 | -10/Subcaves | Approached by a straggling Scientist 1087 | -10/Subcaves | Learned location of Mines (-10) 1128 | -10/Subcaves | Shifting Twisted Machinery released Hvy. Riot Gun 1149 | -10/Subcaves | Ambushed by swarm of Subdwellers 1192 | -10/Subcaves | Shifting Twisted Machinery released Flamer 1240 | -10/Subcaves | Lost 4 allies 1354 | -10/Subcaves | Build established: Subdweller-Mutant 1490 | -10/Subcaves | Destroyed by I6-ZZO(R) with Subdweller Machine Gun Last Messages --------------- 01180_ Acquired Sub. Monowheel. 01180_ HV Slug penetrates Wall. 01181_ Dropped Sensor Array. 01184_ QZ-H1N(g) destroyed. 01184_ Acquired 36 matter. 3H-NGS(c): "I think it's somewhere southwest of here" 01187_ Acquired Sub. Machine Gun. 01189_ Acquired 15 matter. Flamer falls loose from the Twisted Machinery. 01209_ IFZSQYHSP/V,UUYOPKMA>N8RJJ&VX%V> 2 01393_ U5-IH0(z): "She is not going to be happy we haven't found any suitable candidates yet." 01409_ System corrupted: Matter fused (-9). 01448_ Acquired 9 matter. 01466_ 7M-Z8J(R) destroyed. 01478_ I6-ZZO(R): "THANKSYOU!" 01484_ System corrupted: Heat flow error (+294). 01488_ Scrap Shield destroyed. 01490_ IY-3W8(R) destroyed. Map ----- +----------------------------------------------------+ | ## #???????????????????????????????????????? | | ## ##???????????????????????????????????????? | | #????????????????????????????????????????? | | #??????? ????????????????????????????? | | ## ##?????? #??????????????????????????? | | ?# #?????? ##????????????????????????? | | # ### ### # #????????????????????????? | | #?# ###??????????????????????? | | ##?# ??????????????????????? | | ##??## ## #### ???????????????????????? | | #???# ######??# #????? ??????????????????? | | #???#"" ##?????# % #???? #??????????????????? | | ##??# " #????##"* ####? #??????????????????? | | #??#"" #######; ##?#### #??????????????????? | | #??# ## ###;; ;#?# ???????????????????? | | ##?# ## ";### #??????????????????? | | #?# ### ;;### ????????????????????? | | "### #?# =%! ; # ##????? ??????????????? | | ## #?# *%= ## ???????????????? | | " #### # *! # #?????????????????? | | " #"" ## ##; ; ####???????????????????? | | """ #" ;# ##; ;; ##????????????????????? | | %#" ;; #; ##????????????????????? | | #" ;; R ;###???????????????????? | | ### "" # ;; ;###???????????????????? | | ##?#### """#####; @ ###??????????????????? | | "#????#" "" ???### ##??????????????????? | | #?????" ####???## ##??????????????????? | | ?????#"###??????##### ######??????????????????? | | ###?????##?????????############??????????????????? | | ??????????????????????####???????????????????????? | | ?????????????????????????????????????????????????? | | ?????????????????????????????????????????????????? | | ?????????????????????????????????????????????????? | | ?????????????????????????????????????????????????? | | ?????????????????????????????????????????????????? | | ?????????????????????????????????????????????????? | | ?????????????????????????????????????????????????? | | ?????????????????????????????????????????????????? | | ?????????????????????????????????????????????????? | | ?????????????????????????????????????????????????? | | ?????????????????????????????????????????????????? | | ?????????????????????????????????????????????????? | | ?????????????????????????????????????????????????? | | ?????????????????????????????????????????????????? | | | | | | | | | | | +----------------------------------------------------+ Best States ------------- Heat Dissipation 25 Energy Generation 15 Energy Capacity 250 Matter Stores 300 Matter Capacity 300 Sight Range 21 Terrain Scan Density 10 Armor Coverage 800 Core Shielding 20 Evasion (%) 53 Item Schematics ----------------- None Robot Schematics ------------------ None Fabricated ------------ Nothing Repaired ---------- Nothing Studied --------- None Alien Tech Used ----------------- None Achievements -------------- None Challenges ------------ None Game ------ Seed PlatingSigixCartridge Manual? 0 Play Time 00:51:23 Cumulative 64.0 hours Start 2026.06.24 @ 01:10:13 End 2026.06.24 @ 02:12:16 Sessions 1 Manual Loads 0 Difficulty Rogue Special Mode None Game No. 26 Rogue 26 Adventurer 0 Explorer 0 Win Type - Total 1 Types 1/0/0/0/0/0/0/0/0/0 Lore% 25 Gallery% 37 Achievement% 32 Wizard Run 0 Options --------- Layout 1 ASCII 0 Keyboard 0 Movement Arrows Keybinds 0 Fullscreen 1 Font 48/Smallcaps Map View 50x35 Zoom Use 0% Tactical HUD 1 Map Filters NONE Filters NONE Steam 1 RUN: 128d1e35-a851-4b96-b87e-3ddee04141bc